Cogmind - Beta 9.6 @@@ ROGUE MODE // 2020.05.19 @ 13:19:56 Player: TravelDemon Result: Destroyed by G-34 Mercenary with Small Laser Performance ------------- Evolutions (1) 500 Regions Visited (2) 400 Robots Destroyed (31) 155 Value Destroyed (740) 740 Prototype IDs (2) 40 Alien Tech Used (0) 0 Bonus (0) 0 TOTAL SCORE: 1835 Bonus ------- None Cogmind --------- Core Integrity 0/400 Matter 300/300 Energy 99/100 System Corruption 13% Temperature Cool (6) Movement Core (50) Location -9/Materials Parts ------- > --- POWER (1) -------- (None) > --- PROPULSION (3) --- (None) > --- UTILITY (3) ------ (None) > --- WEAPON (2) ------- (None) > --- INVENTORY (4) ---- Light Treads Light Treads Light Treads Maul Peak State ------------ > --- POWER ------------ Light Ion Engine > --- PROPULSION ------- Aluminum Leg Aluminum Leg Aluminum Leg > --- UTILITY ---------- Small Storage Unit Improved Signal Interpreter Improved Light Armor Plating > --- WEAPON ----------- Autogun Maul > --- INVENTORY -------- Ion Engine Light Treads Light Treads Light Treads Maul Maul [Rating: 14] Favorites ----------- Power Light Ion Engine Engine Light Ion Engine Power Core Light Nuclear Core Propulsion Light Treads Treads Light Treads Leg Aluminum Leg Utility Small Storage Unit Storage Small Storage Unit Processor Improved Signal Interpreter Protection Light Armor Plating Weapon Maul Energy Gun EM Pulse Gun Ballistic Gun Assault Rifle Impact Weapon Maul Build | -11 -10 -9 ------- Run | Scr Mat Mat Slots Evolved 2 | . . 2 Power . | . . . Propulsion 1 | . . 1 Utility 1 | . . 1 Weapon . | . . . Parts Attached 22 | 6 11 5 Power 4 | 1 3 . Engine 3 | 1 2 . Core 1 | . 1 . Reactor . | . . . Propulsion 7 | 2 4 1 Treads 3 | 2 1 . Leg 4 | . 3 1 Wheel . | . . . Hover . | . . . Flight . | . . . Utility 4 | 1 1 2 Device . | . . . Storage 1 | 1 . . Processor 1 | . . 1 Hackware . | . . . Protection 2 | . 1 1 Artifact . | . . . Weapon 7 | 2 3 2 Energy Gun 2 | 1 1 . Energy Cannon . | . . . Ballistic Gun 2 | 1 . 1 Ballistic Cannon . | . . . Launcher . | . . . Special Weapon . | . . . Impact Weapon 3 | . 2 1 Slashing Weapon . | . . . Piercing Weapon . | . . . Special Melee Weapon . | . . . Unidentified Prototypes . | . . . Parts Lost 18 | . 8 10 Power 4 | . 3 1 Propulsion 5 | . 2 3 Utility 4 | . 1 3 Weapon 5 | . 2 3 Highest Loss Streak 10 | . 2 10 Average Slot Usage (%) 82 | . 82 82 Engine 8 | . 8 8 Core 2 | . 3 . Treads 14 | . 17 . Leg 13 | . 10 30 Storage 13 | . 14 11 Processor 1 | . . 9 Protection 3 | . 3 2 Energy Gun 4 | . 5 . Ballistic Gun 3 | . 2 9 Impact Weapon 15 | . 16 10 Naked Turns 2 | . . 2 Heaviest Build 16 | 11 15 16 Greatest Support 40 | 3 40 30 Greatest Overweight (x) 4 | 3 4 1 Average Overweight (x) . | 1 1 . Largest Inventory Capacity 6 | 6 6 6 Average Capacity 5 | 5 6 5 Most Carried 6 | 5 6 6 Average Carried 5 | 3 5 5 Final Capacity 6 | 6 6 4 Final Carried 6 | 4 6 4 Class Distribution -------------------- 100% | Mutant Dominant Class ---------------- Mutant | -10/Materials Mutant | -9/Materials Resources | -11 -10 -9 ----------- Run | Scr Mat Mat Matter Collected 538 | 302 206 30 Remotely . | . . . Salvage Created 1145 | 160 856 129 Parts 56 | 15 34 7 Haulers Intercepted 3 | . 2 1 Recyclers Shooed 1 | . 1 . Parts Field Recycled . | . . . Retrieved Matter . | . . . Parts Self-Destructed . | . . . Prevented . | . . . Kills | -11 -10 -9 ------- Run | Scr Mat Mat Combat Hostiles Destroyed 15 | . 14 1 Melee 3 | . 2 1 Guns 7 | . 7 . AOE 1 | . 1 . Classes Destroyed 9 | 3 5 1 Worker 3 | 2 1 . Builder 2 | . 1 1 Tunneler 3 | 3 . . Hauler 3 | . 2 1 Recycler 1 | 1 . . Operator 2 | . 2 . Watcher 2 | . 2 . Grunt 14 | . 14 . Sentry 1 | . . 1 Best Kill Streak 6 | 6 3 2 Combat Bots Only 3 | . 3 1 Max Kills in Single Turn 1 | 1 1 1 Gunslinging . | . . . Exploded 1 | . 1 . Melee 1 | . 1 1 Uniques/NPCs Destroyed . | . . . Combat | -11 -10 -9 -------- Run | Scr Mat Mat Damage Taken 2500 | . 1318 1182 Core 629 | . 220 409 Absorbed by Shields . | . . . Core Remaining (%) 56 | 100 12 . Volleys Fired 59 | 14 45 . Largest 2 | 2 2 . Hottest 80 | 60 80 . Shots Fired 117 | 28 89 . Gun 117 | 28 89 . Cannon . | . . . Launcher . | . . . Special . | . . . Kinetic 49 | 14 35 . Thermal . | . . . Explosive . | . . . Electromagnetic 68 | 14 54 . Robot Hit Streak 8 | 3 8 . Robot Miss Streak 4 | 4 4 . Penetration Max . | . . . Secondary Targets 2 | . 2 . Max Gunslinging Chain 1 | . 1 . Shots Hit Robots 126 | 14 92 20 Core Hits 35 | 7 24 4 Critical Hits 1 | 1 . . Critical Kills 1 | 1 . . Critical Parts Destroyed . | . . . Melee Attacks 79 | . 56 23 Impact 79 | . 56 23 Slashing . | . . . Piercing . | . . . Sneak Attacks 7 | . 5 2 Combat Hostiles . | . . . Follow-up Attacks 1 | . 1 . Damage Inflicted 2938 | 202 2253 483 Guns 1027 | 202 825 . Cannons . | . . . Explosions 68 | . 68 . Melee 1843 | . 1360 483 Ramming . | . . . Kinetic 391 | 85 306 . Thermal 68 | . 68 . Explosive . | . . . Electromagnetic 636 | 117 519 . Impact 1843 | . 1360 483 Slashing . | . . . Piercing . | . . . Highest Corruption 13 | . . 13 Average Corruption 8 | . . 8 Corruption Purged . | . . . Effects 1 | . . 1 Targeting Errors 1 | . . 1 Overload Shots . | . . . Overflow Damage 254 | . 245 9 Projectiles . | . . . Explosions 14 | . 14 . Melee 240 | . 231 9 Knockbacks 9 | . 8 1 Impact 9 | . 8 1 Kinetic . | . . . Secondary . | . . . Self-Inflicted Damage 25 | . 25 . Shots 1 | . 1 . Rammed 1 | . 1 . Targets Rammed 1 | . 1 . Kicked . | . . . Crushed . | . . . Highest Temperature 160 | . 160 . Average Temperature 40 | . 40 . Received Heat Transfer 1251 | . 786 465 Siege Activations . | . . . Robots Corrupted 1 | . 1 . Combat Hostiles . | . . . Parts Fried 12 | 2 10 . Impact Corruptions 16 | . 15 1 Robots Melted . | . . . Combat Hostiles . | . . . Parts Melted . | . . . Heat Transferred 100 | . 100 . Parts Sabotaged . | . . . Parts Stolen . | . . . Parts Stripped . | . . . Power Chain Reactions 2 | . 2 . Missiles Intercepted . | . . . Alert | -11 -10 -9 ------- Run | Scr Mat Mat Peak Influence 270 | 30 270 96 Average Influence 85 | 10 98 45 Maximum Alert Level 1 | . 1 . Low Security (%) 90 | 100 87 100 Level 1 9 | . 12 . Level 2 . | . . . Level 3 . | . . . Level 4 . | . . . Level 5 . | . . . High Security . | . . . Max Security . | . . . Squads Dispatched 5 | . 5 . Investigation 2 | . 2 . Extermination . | . . . Reinforcement 3 | . 3 . Assault . | . . . Garrison . | . . . Intercept . | . . . Construction Impeded . | . . . Haulers Reinforced . | . . . Stealth | -11 -10 -9 --------- Run | Scr Mat Mat Distress Signals 2 | . 2 . Communications Jammed . | . . . Distress Signals . | . . . Times Spotted 50 | . 38 12 Peak Tracking Total 9 | . 4 9 Tactical Retreats 7 | . 6 1 Traps | -11 -10 -9 ------- Run | Scr Mat Mat Traps Triggered 1 | . 1 . Indirectly . | . . . Trap Hack Attempts . | . . . Triggered . | . . . Disarmed . | . . . Reprogrammed . | . . . Reused . | . . . Traps Extracted . | . . . Installed . | . . . Triggered 1 | . 1 . Machines | -11 -10 -9 ---------- Run | Scr Mat Mat Machines Disabled 7 | . 7 . Max in Single Turn 1 | . 1 . Machines Sabotaged . | . . . Garrisons Compromised . | . . . Overloaded Fab Kills . | . . . Fab Network Shutdowns . | . . . Hacking | -11 -10 -9 --------- Run | Scr Mat Mat Machines Accessed 4 | . 4 . Terminals 4 | . 4 . Fabricators . | . . . Repair Stations . | . . . Recycling Units . | . . . Scanalyzers . | . . . Garrison Access . | . . . Total Hacks 7 | . 7 . Successful 4 | . 4 . Failed 3 | . 3 . Catastrophic 1 | . 1 . Database Lockouts . | . . . Manual 4 | . 4 . Terminals 7 | . 7 . Fabricators . | . . . Repair Stations . | . . . Recycling Units . | . . . Scanalyzers . | . . . Garrison Access . | . . . Terminal Hacks 4 | . 4 . Robot Analysis 2 | . 2 . Prototype ID Bank 1 | . 1 . Registered Components 1 | . 1 . Fabricator Hacks . | . . . Repair Station Hacks . | . . . Recycling Unit Hacks . | . . . Scanalyzer . | . . . Garrison Access Hacks . | . . . Unauthorized Hacks . | . . . Terminals . | . . . Fabricators . | . . . Repair Stations . | . . . Recycling Units . | . . . Scanalyzers . | . . . Garrison Access . | . . . Data Cores Recovered . | . . . Used . | . . . Hacking Detections 4 | . 4 . Full Trace Events 1 | . 1 . Feedback Events . | . . . Feedback Blocked . | . . . Robot Schematics Acquired . | . . . Robots Built . | . . . Matter . | . . . Time . | . . . Total Robot Build Rating . | . . . Part Schematics Acquired . | . . . Parts Built . | . . . Matter . | . . . Time . | . . . Total Part Build Rating . | . . . Parts Repaired . | . . . Time . | . . . Parts Recycled . | . . . Recycled Matter . | . . . Retrieved Matter . | . . . Retrieved Components . | . . . Parts Scanalyzed . | . . . Part Schematics Acquired . | . . . Parts Damaged . | . . . Bothacking | -11 -10 -9 ------------ Run | Scr Mat Mat Used RIF Installer . | . . . Robots Hacked . | . . . Non-combat . | . . . Combat . | . . . Robot Hacks Applied . | . . . Relay Couplers Released . | . . . Robots Rewired . | . . . Allies Hacked . | . . . Hacks Repelled . | . . . Allies | -11 -10 -9 -------- Run | Scr Mat Mat Total Allies . | . . . Largest Group . | . . . Highest-Rated Group . | . . . Highest-Rated Ally . | . . . Total Orders . | . . . Ally Attacks . | . . . Total Damage . | . . . Kills . | . . . Allies Corrupted . | . . . Allies Melted . | . . . Intel | -11 -10 -9 ------- Run | Scr Mat Mat Robot Analysis Total 2 | . 2 . Derelict Logs Recovered . | . . . Drone Launches . | . . . Drone Recoveries . | . . . Exploration | -11 -10 -9 ------------- Run | Scr Mat Mat Turns Passed 1825 | 123 1458 244 Spaces Moved 849 | 56 661 132 Core 240 | 56 172 12 Treads 221 | . 221 . Legs 388 | . 268 120 Wheels . | . . . Hover . | . . . Flight . | . . . Fastest Speed 50 | 50 120 50 Average Speed 156 | 124 166 117 Slowest Speed 250 | 200 250 120 Overloaded Moves . | . . . Propulsion Burnouts . | . . . Robots Hopped . | . . . Cave-ins Triggered . | . . . Exploration Rate (%) 40 | 4 97 19 Regions Visited 2 Branch Regions . Pre-discovered Areas . | . . . Known Exits Taken . | . . . Unknown Exits Taken 2 | 1 1 . Scrap Searched . | . . . Spaces Dug . | . . . Terrain Destroyed 4 | . 4 . Melee . | . . . Projectile . | . . . AOE 4 | . 4 . Actions | -11 -10 -9 --------- Run | Scr Mat Mat Total 1076 | 80 820 176 Wait 42 | . 33 9 Move 847 | 55 660 132 Hop . | . . . Pick Up 19 | 5 10 4 Fast Attach 13 | 5 5 3 Attach 8 | 1 5 2 Detach 2 | . 2 . Swap 1 | . 1 . Drop 9 | . 6 3 Fire 59 | 14 45 . Melee 75 | . 52 23 Ram 1 | . 1 . Kick . | . . . Crush . | . . . Escape Stasis . | . . . Rewire . | . . . Trap . | . . . Miscellaneous . | . . . Route ------- -11/Scrapyard -10/Materials (discovered 5 exits: [*Mat x3] / [*Min x2]) -9/Materials (discovered 1 exit: [*Min]) History --------- Turn | Location | Event 7 | -11/Scrapyard | Discovered new exit (range 14) 124 | -11/Scrapyard | Entered Materials 300 | -10/Materials | Build established: Mutant 500 | -10/Materials | Discovered new exit (range 8) 653 | -10/Materials | Discovered new exit (range 13) 847 | -10/Materials | Core integrity fell below 50% 1067 | -10/Materials | Discovered new exit (range 15) 1264 | -10/Materials | Core integrity fell below 20% 1337 | -10/Materials | Discovered new exit (range 9) 1435 | -10/Materials | Discovered new exit (range 16) 1582 | -10/Materials | Entered another Materials area 1582 | -9/Materials | Evolved 2 slots: Propulsion x1, Utility x1 1695 | -9/Materials | Discovered new exit (range 15) 1811 | -9/Materials | System corruption reached 10% 1816 | -9/Materials | Core integrity fell below 50% 1820 | -9/Materials | Core integrity fell below 20% 1826 | -9/Materials | Destroyed by G-34 Mercenary with Small Laser Last Messages --------------- 01805_ Aluminum Leg destroyed. 01805_ System corrupted by crushing effect (+3). 01806_ System corrupted: Maul targeting data glitched. 01808_ K-01 Serf collects debris. 01809_ Autogun destroyed. 01810_ Aluminum Leg destroyed. 01810_ Imp. Light Armor Plating destroyed. 01810_ System corrupted by crushing effect (+4). 01812_ K-01 Serf collects debris. 01812_ Destroyed Heat Sink. 01812_ G-34 Mercenary system corrupted by crushing effect. 01813_ G-34 Mercenary misfires. 01813_ Maul destroyed. 01815_ G-34 Mercenary misfires. 01815_ K-01 Serf collects debris. 01819_ R-06 Scavenger collects Seismic Analyzer. 01819_ R-06 Scavenger collects Wheel. 01822_ K-01 Serf collects debris. 01824_ Sml. Storage Unit destroyed. 01824_ R-06 Scavenger collects Ion Engine. Map ----- +----------------------------------------------------+ | ??????????????????????# ?# # #?# | | ??????????????????????# ?? #?? ???# | | ???????????????????#### ####+#####+###### | | ???????????????????# + "" | | ???????????????????# ##### "" | | ???????????????????# """ #???# % "" | | ????????????"!"????# """ #####+###???# | | ???????????? ## """ #???????????######## | | ??????????? ! #??????????????????? | | ??????????? < #??????????????????? | | ??????????? #??????????????????? | | ???????????? ##+######## #??????????????????? | | ????????????????????????????# #??????????????????? | | ????????????????????????????# #??????????????????? | | ????????????????????????????# #??????????????????? | | ????????????????????????????# #??????????????????? | | ????????????????????????????# #??????????????????? | | ????????????????????????????# #??????????????????? | | ????????????????????????????# #??????????????????? | | ????????????????????????????# #??????????????????? | | ????????????????????????????# #??????????????????? | | ????????????????????????????# #??????????????????? | | ????????????????????????????# #??????????????????? | | ????????????????????????????# #??????????????????? | | ?????????????????############ #####??????????????? | | ?????????????# @ %g !!#??????????????? | | ?????????????????############gYg!!#??????????????? | | ????????????????????????????# !#??????????????? | | ????????????????????????????# % !!#??????????????? | | ????????????????????????????# !!#??????????????? | | ????????????????????????????# !!#??????????????? | | ????????????????????????????+ #####??????????????? | | ????????????????????????????# #??????????????????? | | ????????????????????????????# #??????????????????? | | ???????????????????????????? ??????????????????? | | ???????????????????????????? ??????????????????? | | ??????????????????????????? ??????????????????? | | ??????????????????????????? ??????????????????? | | ??????????????????????????? ??????????????????? | | ??????????????????????????## ??????????????????? | | ???????????????????????????# ??????????????????? | | ???????????????????????????# ??????????????????? | | ???????????????????????????? ??????????????????? | | ???????????????????????????? ??????????????????? | | ???????????????????????????? ??????????????????? | | ?????????????????????????????????????????????????? | | ?????????????????????????????????????????????????? | | ?????????????????????????????????????????????????? | | ?????????????????????????????????????????????????? | | ?????????????????????????????????????????????????? | +----------------------------------------------------+ Best States ------------- Heat Dissipation 28 Energy Generation 10 Energy Capacity 160 Matter Stores 300 Matter Capacity 300 Sight Range 16 Terrain Scan Density 10 Armor Coverage 150 Evasion (%) 50 Recoil Reduction 2 Item Schematics ----------------- None Robot Schematics ------------------ None Fabricated ------------ Nothing Alien Tech Used ----------------- None Achievements -------------- None Challenges ------------ None Game ------ Seed DispersionBeamChip Manual? 0 Play Time 00:13:03 Cumulative 46.5 hours Start 2020.05.19 @ 13:08:47 End 2020.05.19 @ 13:19:56 Sessions 1 Manual Loads 0 Difficulty Rogue Special Mode None Game No. 63 Rogue 61 Adventurer 0 Explorer 2 Win Type - Total 1 Types 1/0/0/0/0/0/0 Lore% 36 Gallery% 42 Achievement% 36 Wizard Run 0 Options --------- ASCII 0 Keyboard 1 Movement Numpad Keybinds 0 Fullscreen 2 Font 18/SmallcapsGlow Map View 76x50 Tactical HUD 1 Map Filters NONE Filters NONE Steam 1 RUN: 1701ac31-a83d-42a9-82d9-5ae119cd8a5d